[Event "Titled Tuesday Blitz October 11 Late 2022"]
[White "Pakleza, Zbigniew"]
[Black "Bilan, Danila"]
[WhiteFideId "1119290"]
[BlackFideId "24161918"]
[WhiteElo "2837"]
[BlackElo "2453"]
[Result "0-1"]
[Round "01"]
[TimeControl "180+1"]
[Date "2022.10.12"]
[WhiteClock "0:00:04"]
[BlackClock "0:00:13"]

1. d4 {[%clk 0:03:00]}  d5 {[%clk 0:02:58]} 2. Bf4 {[%clk 0:03:00]}  Nf6 {[%clk 0:02:57]} 3. e3 {[%clk 0:03:00]}  c5 {[%clk 0:02:56]} 4. c3 {[%clk 0:03:01]}  Nc6 {[%clk 0:02:55]} 5. Nd2 {[%clk 0:03:01]}  cxd4 {[%clk 0:02:48]} 6. cxd4 {[%clk 0:03:00]}  Bf5 {[%clk 0:02:40]} 7. Ngf3 {[%clk 0:02:50]}  e6 {[%clk 0:02:34]} 8. Qb3 {[%clk 0:02:47]}  Qb6 {[%clk 0:02:24]} 9. Qxb6 {[%clk 0:02:39]}  axb6 {[%clk 0:02:24]} 10. Bb5 {[%clk 0:02:40]}  Nd7 {[%clk 0:02:14]} 11. Ke2 {[%clk 0:02:38]}  Na7 {[%clk 0:01:44]} 12. Bd3 {[%clk 0:02:14]}  Bxd3+ {[%clk 0:01:38]} 13. Kxd3 {[%clk 0:02:14]}  Nc6 {[%clk 0:01:32]} 14. a3 {[%clk 0:02:12]}  Be7 {[%clk 0:01:20]} 15. e4 {[%clk 0:01:56]}  dxe4+ {[%clk 0:01:09]} 16. Nxe4 {[%clk 0:01:57]}  O-O {[%clk 0:00:59]} 17. Rhd1 {[%clk 0:01:48]}  Nf6 {[%clk 0:00:53]} 18. Nxf6+ {[%clk 0:01:40]}  Bxf6 {[%clk 0:00:50]} 19. Ke4 {[%clk 0:01:39]}  Ne7 {[%clk 0:00:39]} 20. Rac1 {[%clk 0:01:32]}  Nd5 {[%clk 0:00:38]} 21. Be5 {[%clk 0:01:18]}  Rac8 {[%clk 0:00:34]} 22. Bxf6 {[%clk 0:00:54]}  gxf6 {[%clk 0:00:35]} 23. g3 {[%clk 0:00:49]}  Rfd8 {[%clk 0:00:32]} 24. Rxc8 {[%clk 0:00:46]}  Rxc8 {[%clk 0:00:31]} 25. Kd3 {[%clk 0:00:47]}  Kf8 {[%clk 0:00:25]} 26. Nd2 {[%clk 0:00:40]}  Ke7 {[%clk 0:00:22]} 27. Nb3 {[%clk 0:00:36]}  h5 {[%clk 0:00:19]} 28. Rc1 {[%clk 0:00:35]}  Rh8 {[%clk 0:00:17]} 29. h4 {[%clk 0:00:21]}  f5 {[%clk 0:00:18]} 30. Nd2 {[%clk 0:00:21]}  Rg8 {[%clk 0:00:17]} 31. Ke2 {[%clk 0:00:11]}  f4 {[%clk 0:00:18]} 32. Ne4 {[%clk 0:00:10]}  fxg3 {[%clk 0:00:15]} 33. fxg3 {[%clk 0:00:09]}  Rg4 {[%clk 0:00:14]} 34. Kf3 {[%clk 0:00:08]}  f5 {[%clk 0:00:13]} 35. Ng5 {[%clk 0:00:07]}  f4 {[%clk 0:00:06]} 36. Re1 {[%clk 0:00:04]}  Rxg3+ {[%clk 0:00:06]} 37. Kf2 {[%clk 0:00:04]}  Re3 {[%clk 0:00:05]} 38. Rxe3 {[%clk 0:00:04]}  Nxe3 {[%clk 0:00:06]} 39. Kf3 {[%clk 0:00:03]}  Nf5 {[%clk 0:00:05]} 40. Kxf4 {[%clk 0:00:02]}  Nxh4 {[%clk 0:00:06]} 41. Ne4 {[%clk 0:00:02]}  Nf5 {[%clk 0:00:06]} 42. Ke5 {[%clk 0:00:02]}  h4 {[%clk 0:00:05]} 43. Ng5 {[%clk 0:00:03]}  Nh6 {[%clk 0:00:03]} 44. Kf4 {[%clk 0:00:03]}  Nf7 {[%clk 0:00:03]} 45. Nf3 {[%clk 0:00:03]}  Nd6 {[%clk 0:00:04]} 46. Nxh4 {[%clk 0:00:03]}  Kf6 {[%clk 0:00:04]} 47. Nf3 {[%clk 0:00:03]}  Nf5 {[%clk 0:00:04]} 48. Ke4 {[%clk 0:00:03]}  Ne7 {[%clk 0:00:05]} 49. Ne5 {[%clk 0:00:03]}  Nd5 {[%clk 0:00:05]} 50. b4 {[%clk 0:00:02]}  Ke7 {[%clk 0:00:05]} 51. Kd3 {[%clk 0:00:02]}  Kd6 {[%clk 0:00:05]} 52. Nc4+ {[%clk 0:00:02]}  Kc6 {[%clk 0:00:06]} 53. Ne5+ {[%clk 0:00:02]}  Kd6 {[%clk 0:00:06]} 54. Kc4 {[%clk 0:00:02]}  Ne3+ {[%clk 0:00:07]} 55. Kb5 {[%clk 0:00:03]}  Nd5 {[%clk 0:00:08]} 56. Nc4+ {[%clk 0:00:03]}  Kc7 {[%clk 0:00:08]} 57. Ne5 {[%clk 0:00:03]}  Kd6 {[%clk 0:00:07]} 58. Nf7+ {[%clk 0:00:03]}  Kc7 {[%clk 0:00:08]} 59. Ng5 {[%clk 0:00:04]}  Kd6 {[%clk 0:00:08]} 60. Kc4 {[%clk 0:00:04]}  Kc6 {[%clk 0:00:09]} 61. b5+ {[%clk 0:00:04]}  Kd6 {[%clk 0:00:09]} 62. Ne4+ {[%clk 0:00:04]}  Kd7 {[%clk 0:00:09]} 63. Kd3 {[%clk 0:00:05]}  Ke7 {[%clk 0:00:08]} 64. Nd2 {[%clk 0:00:05]}  Kd7 {[%clk 0:00:08]} 65. a4 {[%clk 0:00:04]}  Kd6 {[%clk 0:00:08]} 66. Ke4 {[%clk 0:00:05]}  Nc3+ {[%clk 0:00:08]} 67. Kd3 {[%clk 0:00:04]}  Nxa4 {[%clk 0:00:08]} 68. Kc4 {[%clk 0:00:04]}  Nb2+ {[%clk 0:00:09]} 69. Kc3 {[%clk 0:00:04]}  Nd1+ {[%clk 0:00:10]} 70. Kd3 {[%clk 0:00:05]}  Nf2+ {[%clk 0:00:10]} 71. Kc4 {[%clk 0:00:05]}  Ng4 {[%clk 0:00:10]} 72. Ne4+ {[%clk 0:00:05]}  Kd7 {[%clk 0:00:09]} 73. Kd3 {[%clk 0:00:05]}  Nh6 {[%clk 0:00:09]} 74. Nf6+ {[%clk 0:00:04]}  Kd6 {[%clk 0:00:09]} 75. Ne4+ {[%clk 0:00:05]}  Kc7 {[%clk 0:00:08]} 76. Ng5 {[%clk 0:00:05]}  Kd7 {[%clk 0:00:09]} 77. Nf3 {[%clk 0:00:04]}  Nf5 {[%clk 0:00:09]} 78. Ne5+ {[%clk 0:00:03]}  Kc7 {[%clk 0:00:09]} 79. Kc4 {[%clk 0:00:03]}  Nd6+ {[%clk 0:00:10]} 80. Kb4 {[%clk 0:00:04]}  Ne4 {[%clk 0:00:09]} 81. Kc4 {[%clk 0:00:04]}  Kd6 {[%clk 0:00:09]} 82. Nf7+ {[%clk 0:00:05]}  Ke7 {[%clk 0:00:09]} 83. Ne5 {[%clk 0:00:06]}  Nd6+ {[%clk 0:00:09]} 84. Kb4 {[%clk 0:00:06]}  Nf7 {[%clk 0:00:09]} 85. Nd3 {[%clk 0:00:06]}  Kd6 {[%clk 0:00:10]} 86. Kc4 {[%clk 0:00:06]}  e5 {[%clk 0:00:10]} 87. dxe5+ {[%clk 0:00:05]}  Nxe5+ {[%clk 0:00:11]} 88. Nxe5 {[%clk 0:00:02]}  Kxe5 {[%clk 0:00:12]} 89. Kc3 {[%clk 0:00:02]}  Kd5 {[%clk 0:00:12]} 90. Kb3 {[%clk 0:00:03]}  Kc5 {[%clk 0:00:12]} 91. Kc3 {[%clk 0:00:03]}  Kxb5 {[%clk 0:00:13]} 92. Kb3 {[%clk 0:00:04]}  Kc5 {[%clk 0:00:13]} 0-1


[Site "https://www.chess.com"]

[Event "Titled Tuesday Blitz October 11 Late 2022"]
[White "Pinheiro, Iung Alicio de O."]
[Black "Garmash, Aliona"]
[WhiteFideId "2104350"]
[BlackFideId "34127620"]
[WhiteElo "2283"]
[BlackElo "1980"]
[Result "1-0"]
[Round "01"]
[TimeControl "180+1"]
[Date "2022.10.12"]
[WhiteClock "0:00:09"]
[BlackClock "0:00:01"]

1. e4 {[%clk 0:02:57]}  c5 {[%clk 0:02:59]} 2. Nf3 {[%clk 0:02:55]}  d6 {[%clk 0:02:58]} 3. Nc3 {[%clk 0:02:55]}  Nf6 {[%clk 0:02:57]} 4. e5 {[%clk 0:02:54]}  dxe5 {[%clk 0:02:56]} 5. Nxe5 {[%clk 0:02:55]}  a6 {[%clk 0:02:56]} 6. Bc4 {[%clk 0:02:33]}  e6 {[%clk 0:02:51]} 7. Qf3 {[%clk 0:02:25]}  Qd4 {[%clk 0:02:13]} 8. Qe3 {[%clk 0:02:02]}  Qxe3+ {[%clk 0:01:59]} 9. fxe3 {[%clk 0:01:48]}  b5 {[%clk 0:01:59]} 10. Be2 {[%clk 0:01:47]}  Bb7 {[%clk 0:01:58]} 11. O-O {[%clk 0:01:46]}  Bd6 {[%clk 0:01:55]} 12. Bf3 {[%clk 0:01:39]}  Bxf3 {[%clk 0:01:53]} 13. Nxf3 {[%clk 0:01:40]}  O-O {[%clk 0:01:51]} 14. d3 {[%clk 0:01:38]}  Nc6 {[%clk 0:01:50]} 15. a4 {[%clk 0:01:35]}  b4 {[%clk 0:01:29]} 16. Ne2 {[%clk 0:01:33]}  Rfc8 {[%clk 0:01:13]} 17. b3 {[%clk 0:01:32]}  Nd5 {[%clk 0:00:55]} 18. e4 {[%clk 0:01:23]}  Nde7 {[%clk 0:00:49]} 19. Bb2 {[%clk 0:01:03]}  Ng6 {[%clk 0:00:48]} 20. Nd2 {[%clk 0:00:50]}  e5 {[%clk 0:00:39]} 21. Nc4 {[%clk 0:00:50]}  Bc7 {[%clk 0:00:39]} 22. g3 {[%clk 0:00:46]}  Nd4 {[%clk 0:00:38]} 23. Bxd4 {[%clk 0:00:41]}  cxd4 {[%clk 0:00:38]} 24. Rf2 {[%clk 0:00:23]}  Bd8 {[%clk 0:00:35]} 25. Raf1 {[%clk 0:00:22]}  Bg5 {[%clk 0:00:29]} 26. Rf5 {[%clk 0:00:21]}  Bf6 {[%clk 0:00:27]} 27. h4 {[%clk 0:00:21]}  Ne7 {[%clk 0:00:22]} 28. R5f3 {[%clk 0:00:20]}  Ra7 {[%clk 0:00:20]} 29. Kg2 {[%clk 0:00:19]}  Rac7 {[%clk 0:00:20]} 30. Kh3 {[%clk 0:00:20]}  Nc6 {[%clk 0:00:19]} 31. g4 {[%clk 0:00:19]}  h6 {[%clk 0:00:18]} 32. Rf5 {[%clk 0:00:19]}  Re8 {[%clk 0:00:14]} 33. Ng3 {[%clk 0:00:19]}  Nd8 {[%clk 0:00:12]} 34. g5 {[%clk 0:00:17]}  hxg5 {[%clk 0:00:11]} 35. hxg5 {[%clk 0:00:18]}  Be7 {[%clk 0:00:10]} 36. Rxf7 {[%clk 0:00:18]}  Nxf7 {[%clk 0:00:09]} 37. g6 {[%clk 0:00:18]}  Ng5+ {[%clk 0:00:09]} 38. Kg4 {[%clk 0:00:19]}  Bf6 {[%clk 0:00:09]} 39. Nf5 {[%clk 0:00:18]}  Ne6 {[%clk 0:00:08]} 40. Rh1 {[%clk 0:00:17]}  Rb8 {[%clk 0:00:06]} 41. Rh7 {[%clk 0:00:16]}  Nc5 {[%clk 0:00:04]} 42. Ncd6 {[%clk 0:00:11]}  Rf8 {[%clk 0:00:03]} 43. Nh6+ {[%clk 0:00:08]}  gxh6 {[%clk 0:00:01]} 44. Rxc7 {[%clk 0:00:09]} 1-0


[Site "https://www.chess.com"]

[Event "Titled Tuesday Blitz October 11 Late 2022"]
[White "Plotnikov, Pavel"]
[Black "Floresvillar Gonzalez, Luis Migu"]
[WhiteFideId "4170342"]
[BlackFideId "5100542"]
[WhiteElo "2298"]
[BlackElo "2040"]
[Result "1-0"]
[Round "01"]
[TimeControl "180+1"]
[Date "2022.10.12"]
[WhiteClock "0:00:20"]
[BlackClock "0:00:02"]

1. d4 {[%clk 0:02:58]}  e6 {[%clk 0:02:59]} 2. e4 {[%clk 0:02:58]}  Be7 {[%clk 0:02:57]} 3. Nc3 {[%clk 0:02:57]}  d5 {[%clk 0:02:57]} 4. Nf3 {[%clk 0:02:56]}  dxe4 {[%clk 0:02:56]} 5. Nxe4 {[%clk 0:02:55]}  Nd7 {[%clk 0:02:56]} 6. Bd3 {[%clk 0:02:55]}  Ngf6 {[%clk 0:02:56]} 7. Qe2 {[%clk 0:02:54]}  Nxe4 {[%clk 0:02:56]} 8. Bxe4 {[%clk 0:02:54]}  Nf6 {[%clk 0:02:55]} 9. Bxb7 {[%clk 0:02:52]}  Bxb7 {[%clk 0:02:51]} 10. Qb5+ {[%clk 0:02:52]}  Qd7 {[%clk 0:02:23]} 11. Qxb7 {[%clk 0:02:51]}  O-O {[%clk 0:02:23]} 12. O-O {[%clk 0:02:50]}  Rfb8 {[%clk 0:02:20]} 13. Qa6 {[%clk 0:02:49]}  Rb6 {[%clk 0:02:20]} 14. Qd3 {[%clk 0:02:49]}  Rab8 {[%clk 0:02:16]} 15. b3 {[%clk 0:02:49]}  c5 {[%clk 0:02:11]} 16. Bb2 {[%clk 0:02:45]}  cxd4 {[%clk 0:02:10]} 17. Qxd4 {[%clk 0:02:43]}  Rd6 {[%clk 0:02:10]} 18. Qf4 {[%clk 0:02:33]}  Rd8 {[%clk 0:02:08]} 19. Be5 {[%clk 0:02:27]}  Rd5 {[%clk 0:02:05]} 20. c4 {[%clk 0:02:25]}  Rd3 {[%clk 0:02:00]} 21. h3 {[%clk 0:02:22]}  h6 {[%clk 0:01:46]} 22. Rfe1 {[%clk 0:02:17]}  Bd6 {[%clk 0:01:23]} 23. Qh4 {[%clk 0:01:57]}  Qe7 {[%clk 0:01:13]} 24. Bxd6 {[%clk 0:01:45]}  R8xd6 {[%clk 0:01:11]} 25. Rac1 {[%clk 0:01:35]}  a5 {[%clk 0:01:06]} 26. c5 {[%clk 0:01:29]}  R6d5 {[%clk 0:01:00]} 27. c6 {[%clk 0:01:27]}  Qc7 {[%clk 0:01:00]} 28. Qa4 {[%clk 0:01:21]}  Rxf3 {[%clk 0:00:51]} 29. gxf3 {[%clk 0:01:21]}  Nh5 {[%clk 0:00:49]} 30. Re4 {[%clk 0:01:14]}  Rg5+ {[%clk 0:00:45]} 31. Rg4 {[%clk 0:01:14]}  Nf4 {[%clk 0:00:35]} 32. Rxg5 {[%clk 0:01:04]}  hxg5 {[%clk 0:00:35]} 33. Qb5 {[%clk 0:00:50]}  Nxh3+ {[%clk 0:00:31]} 34. Kg2 {[%clk 0:00:47]}  Nf4+ {[%clk 0:00:29]} 35. Kf1 {[%clk 0:00:46]}  f6 {[%clk 0:00:20]} 36. a3 {[%clk 0:00:41]}  Kh7 {[%clk 0:00:18]} 37. b4 {[%clk 0:00:37]}  axb4 {[%clk 0:00:17]} 38. axb4 {[%clk 0:00:37]}  e5 {[%clk 0:00:13]} 39. Qc4 {[%clk 0:00:34]}  Ng6 {[%clk 0:00:11]} 40. b5 {[%clk 0:00:33]}  Nh4 {[%clk 0:00:11]} 41. b6 {[%clk 0:00:27]}  Qxb6 {[%clk 0:00:10]} 42. c7 {[%clk 0:00:25]}  Nxf3 {[%clk 0:00:09]} 43. Qe4+ {[%clk 0:00:23]}  g6 {[%clk 0:00:05]} 44. Qxf3 {[%clk 0:00:23]}  Qb5+ {[%clk 0:00:05]} 45. Kg1 {[%clk 0:00:22]}  g4 {[%clk 0:00:03]} 46. Qxf6 {[%clk 0:00:21]}  Qb2 {[%clk 0:00:02]} 47. c8=Q {[%clk 0:00:20]} 1-0


[Site "https://www.chess.com"]

[Event "Titled Tuesday Blitz October 11 Late 2022"]
[White "Poliakova, Varvara"]
[Black "Kamsky, Gata"]
[WhiteFideId "13518313"]
[BlackFideId "2000024"]
[WhiteElo "1938"]
[BlackElo "2666"]
[Result "0-1"]
[Round "01"]
[TimeControl "180+1"]
[Date "2022.10.11"]
[WhiteClock "0:00:12"]
[BlackClock "0:00:18"]

1. e4 {[%clk 0:02:56]}  c5 {[%clk 0:02:56]} 2. Nf3 {[%clk 0:02:55]}  e6 {[%clk 0:02:53]} 3. d4 {[%clk 0:02:55]}  cxd4 {[%clk 0:02:45]} 4. Nxd4 {[%clk 0:02:56]}  a6 {[%clk 0:02:45]} 5. Nc3 {[%clk 0:02:49]}  b5 {[%clk 0:02:44]} 6. a3 {[%clk 0:02:42]}  Bb7 {[%clk 0:02:41]} 7. Bd3 {[%clk 0:02:38]}  Bc5 {[%clk 0:02:33]} 8. Nf3 {[%clk 0:02:38]}  Ne7 {[%clk 0:02:20]} 9. O-O {[%clk 0:02:37]}  Nbc6 {[%clk 0:02:19]} 10. Re1 {[%clk 0:02:34]}  Ng6 {[%clk 0:02:07]} 11. Bf1 {[%clk 0:02:19]}  O-O {[%clk 0:01:55]} 12. g3 {[%clk 0:02:10]}  d6 {[%clk 0:01:46]} 13. Bg2 {[%clk 0:02:05]}  Qc7 {[%clk 0:01:28]} 14. Qe2 {[%clk 0:02:00]}  h6 {[%clk 0:01:11]} 15. Be3 {[%clk 0:01:59]}  Bxe3 {[%clk 0:01:08]} 16. Qxe3 {[%clk 0:02:00]}  Nce5 {[%clk 0:01:05]} 17. Nd2 {[%clk 0:01:37]}  Rac8 {[%clk 0:00:53]} 18. Rad1 {[%clk 0:01:32]}  Rfd8 {[%clk 0:00:52]} 19. h3 {[%clk 0:01:30]}  Qc5 {[%clk 0:00:46]} 20. f4 {[%clk 0:01:22]}  Nd7 {[%clk 0:00:41]} 21. Nb3 {[%clk 0:01:11]}  Qxe3+ {[%clk 0:00:40]} 22. Rxe3 {[%clk 0:01:12]}  Nb6 {[%clk 0:00:28]} 23. Bf1 {[%clk 0:01:08]}  Kf8 {[%clk 0:00:27]} 24. Kf2 {[%clk 0:01:01]}  Ba8 {[%clk 0:00:26]} 25. h4 {[%clk 0:01:01]}  Ne7 {[%clk 0:00:24]} 26. Rd2 {[%clk 0:00:53]}  Ng8 {[%clk 0:00:21]} 27. Be2 {[%clk 0:00:29]}  Nf6 {[%clk 0:00:21]} 28. Ke1 {[%clk 0:00:25]}  h5 {[%clk 0:00:20]} 29. Na2 {[%clk 0:00:21]}  g6 {[%clk 0:00:19]} 30. c3 {[%clk 0:00:20]}  Nc4 {[%clk 0:00:19]} 31. Bxc4 {[%clk 0:00:20]}  bxc4 {[%clk 0:00:19]} 32. Nd4 {[%clk 0:00:19]}  Nxe4 {[%clk 0:00:19]} 33. Rde2 {[%clk 0:00:20]}  d5 {[%clk 0:00:20]} 34. Nb4 {[%clk 0:00:19]}  a5 {[%clk 0:00:20]} 35. Nbc2 {[%clk 0:00:19]}  Rb8 {[%clk 0:00:20]} 36. Na1 {[%clk 0:00:18]}  Rdc8 {[%clk 0:00:21]} 37. Kd1 {[%clk 0:00:18]}  Bc6 {[%clk 0:00:21]} 38. Kc1 {[%clk 0:00:18]}  Ba4 {[%clk 0:00:21]} 39. Nf3 {[%clk 0:00:18]}  Nc5 {[%clk 0:00:20]} 40. Ne5 {[%clk 0:00:17]}  Rb6 {[%clk 0:00:20]} 41. Nc2 {[%clk 0:00:16]}  Bxc2 {[%clk 0:00:19]} 42. Rxc2 {[%clk 0:00:14]}  Kg7 {[%clk 0:00:19]} 43. g4 {[%clk 0:00:14]}  hxg4 {[%clk 0:00:18]} 44. Nxg4 {[%clk 0:00:15]}  Nd3+ {[%clk 0:00:19]} 45. Kd2 {[%clk 0:00:15]}  Rxb2 {[%clk 0:00:18]} 46. Rxb2 {[%clk 0:00:15]}  Nxb2 {[%clk 0:00:18]} 47. Ne5 {[%clk 0:00:14]}  Rb8 {[%clk 0:00:18]} 48. Re1 {[%clk 0:00:13]}  Na4 {[%clk 0:00:18]} 49. Rc1 {[%clk 0:00:13]}  Rb3 {[%clk 0:00:18]} 50. Nc6 {[%clk 0:00:12]}  Rxa3 {[%clk 0:00:17]} 51. Nxa5 {[%clk 0:00:12]}  Nc5 {[%clk 0:00:18]} 0-1


[Site "https://www.chess.com"]

[Event "Titled Tuesday Blitz October 11 Late 2022"]
[White "Prabhu, Naveen"]
[Black "Barria Zuniga, Daniel"]
[WhiteFideId "30939372"]
[BlackFideId "3400816"]
[WhiteElo "2338"]
[BlackElo "2414"]
[Result "0-1"]
[Round "01"]
[TimeControl "180+1"]
[Date "2022.10.12"]
[WhiteClock "0:00:05"]
[BlackClock "0:01:04"]

1. e4 {[%clk 0:03:00]}  c5 {[%clk 0:02:58]} 2. Nf3 {[%clk 0:03:00]}  Nc6 {[%clk 0:02:58]} 3. Bb5 {[%clk 0:02:59]}  Na5 {[%clk 0:02:58]} 4. O-O {[%clk 0:02:56]}  a6 {[%clk 0:02:58]} 5. Be2 {[%clk 0:02:55]}  b5 {[%clk 0:02:59]} 6. d4 {[%clk 0:02:54]}  cxd4 {[%clk 0:02:59]} 7. Nxd4 {[%clk 0:02:54]}  Bb7 {[%clk 0:02:59]} 8. Bf3 {[%clk 0:02:45]}  e6 {[%clk 0:02:59]} 9. Re1 {[%clk 0:02:42]}  Ne7 {[%clk 0:02:59]} 10. e5 {[%clk 0:02:40]}  Qc7 {[%clk 0:02:55]} 11. Bxb7 {[%clk 0:02:38]}  Qxb7 {[%clk 0:02:55]} 12. b3 {[%clk 0:02:32]}  Rc8 {[%clk 0:02:47]} 13. a4 {[%clk 0:02:24]}  b4 {[%clk 0:02:44]} 14. Bb2 {[%clk 0:02:14]}  Ng6 {[%clk 0:02:44]} 15. Nd2 {[%clk 0:02:04]}  Be7 {[%clk 0:02:40]} 16. N4f3 {[%clk 0:01:56]}  O-O {[%clk 0:02:38]} 17. Ne4 {[%clk 0:01:55]}  Nf4 {[%clk 0:02:09]} 18. c3 {[%clk 0:01:43]}  bxc3 {[%clk 0:02:01]} 19. Bxc3 {[%clk 0:01:44]}  Nc6 {[%clk 0:01:55]} 20. Rb1 {[%clk 0:01:41]}  Nb4 {[%clk 0:01:43]} 21. Bd2 {[%clk 0:01:23]}  Nbd3 {[%clk 0:01:38]} 22. Bxf4 {[%clk 0:01:22]}  Nxf4 {[%clk 0:01:37]} 23. Qd2 {[%clk 0:01:19]}  Nd5 {[%clk 0:01:33]} 24. Nfg5 {[%clk 0:00:59]}  h6 {[%clk 0:01:29]} 25. Nh3 {[%clk 0:00:45]}  Bb4 {[%clk 0:01:28]} 26. Qd3 {[%clk 0:00:44]}  Bxe1 {[%clk 0:01:27]} 27. Rxe1 {[%clk 0:00:45]}  Qb4 {[%clk 0:01:25]} 28. Kf1 {[%clk 0:00:35]}  a5 {[%clk 0:01:24]} 29. Nd6 {[%clk 0:00:36]}  Rc3 {[%clk 0:01:22]} 30. Qa6 {[%clk 0:00:21]}  Rxb3 {[%clk 0:01:20]} 31. g3 {[%clk 0:00:21]}  Qxa4 {[%clk 0:01:15]} 32. Qa7 {[%clk 0:00:20]}  Qc6 {[%clk 0:01:14]} 33. Kg1 {[%clk 0:00:19]}  Rb4 {[%clk 0:01:06]} 34. Qxa5 {[%clk 0:00:18]}  Ra8 {[%clk 0:01:03]} 35. Qxa8+ {[%clk 0:00:05]}  Qxa8 {[%clk 0:01:04]} 36. g4 {[%clk 0:00:05]} 0-1


[Site "https://www.chess.com"]

[Event "Titled Tuesday Blitz October 11 Late 2022"]
[White "Prieto Aranguren, Alain"]
[Black "Lewicki, Miroslaw"]
[WhiteFideId "2268906"]
[BlackFideId "1113380"]
[WhiteElo "2209"]
[BlackElo "2236"]
[Result "1/2-1/2"]
[Round "01"]
[TimeControl "180+1"]
[Date "2022.10.12"]
[WhiteClock "0:00:01"]
[BlackClock "0:00:06"]

1. d4 {[%clk 0:02:54]}  b6 {[%clk 0:02:59]} 2. e4 {[%clk 0:02:54]}  Bb7 {[%clk 0:03:00]} 3. Bd3 {[%clk 0:02:53]}  Nf6 {[%clk 0:02:59]} 4. Qe2 {[%clk 0:02:52]}  e6 {[%clk 0:03:00]} 5. f4 {[%clk 0:02:50]}  d5 {[%clk 0:02:58]} 6. e5 {[%clk 0:02:50]}  Ne4 {[%clk 0:02:58]} 7. Nd2 {[%clk 0:02:50]}  Nxd2 {[%clk 0:02:49]} 8. Bxd2 {[%clk 0:02:49]}  Be7 {[%clk 0:02:48]} 9. Nf3 {[%clk 0:02:48]}  h6 {[%clk 0:02:47]} 10. O-O {[%clk 0:02:48]}  c5 {[%clk 0:02:47]} 11. c3 {[%clk 0:02:48]}  Qc7 {[%clk 0:02:48]} 12. Qf2 {[%clk 0:02:48]}  Nc6 {[%clk 0:02:46]} 13. Qg3 {[%clk 0:02:48]}  g6 {[%clk 0:02:41]} 14. a4 {[%clk 0:02:44]}  c4 {[%clk 0:02:36]} 15. Bc2 {[%clk 0:02:42]}  Na5 {[%clk 0:02:36]} 16. Qh3 {[%clk 0:02:40]}  O-O-O {[%clk 0:02:33]} 17. g4 {[%clk 0:02:38]}  Kb8 {[%clk 0:02:33]} 18. f5 {[%clk 0:02:38]}  gxf5 {[%clk 0:02:29]} 19. gxf5 {[%clk 0:02:36]}  Rdg8+ {[%clk 0:02:29]} 20. Kh1 {[%clk 0:02:36]}  Bg5 {[%clk 0:02:29]} 21. fxe6 {[%clk 0:02:31]}  fxe6 {[%clk 0:02:25]} 22. Qxe6 {[%clk 0:02:22]}  Re8 {[%clk 0:02:22]} 23. Qd6 {[%clk 0:02:16]}  Qxd6 {[%clk 0:02:11]} 24. exd6 {[%clk 0:02:16]}  Re2 {[%clk 0:02:06]} 25. Rad1 {[%clk 0:01:55]}  Bc8 {[%clk 0:01:56]} 26. Bxg5 {[%clk 0:01:39]}  hxg5 {[%clk 0:01:56]} 27. Rd2 {[%clk 0:01:37]}  Re6 {[%clk 0:01:35]} 28. Nxg5 {[%clk 0:01:33]}  Ree8 {[%clk 0:01:15]} 29. Rdf2 {[%clk 0:01:25]}  Nb7 {[%clk 0:01:08]} 30. Nf7 {[%clk 0:01:20]}  Rh3 {[%clk 0:01:00]} 31. Bf5 {[%clk 0:01:16]}  Bxf5 {[%clk 0:00:53]} 32. Rxf5 {[%clk 0:01:16]}  Kc8 {[%clk 0:00:50]} 33. Rxd5 {[%clk 0:01:12]}  Re2 {[%clk 0:00:49]} 34. Rg5 {[%clk 0:00:31]}  Rexh2+ {[%clk 0:00:37]} 35. Kg1 {[%clk 0:00:30]}  Rh7 {[%clk 0:00:26]} 36. Rg8+ {[%clk 0:00:21]}  Kd7 {[%clk 0:00:25]} 37. Ne5+ {[%clk 0:00:20]}  Kxd6 {[%clk 0:00:25]} 38. Rf6+ {[%clk 0:00:20]}  Kd5 {[%clk 0:00:25]} 39. Rg4 {[%clk 0:00:15]}  Rh1+ {[%clk 0:00:21]} 40. Kg2 {[%clk 0:00:14]}  R7h2+ {[%clk 0:00:18]} 41. Kg3 {[%clk 0:00:14]}  Rxb2 {[%clk 0:00:19]} 42. Nf3 {[%clk 0:00:11]}  Rh5 {[%clk 0:00:12]} 43. Kf4 {[%clk 0:00:06]}  Re2 {[%clk 0:00:10]} 44. Rg7 {[%clk 0:00:02]}  Re4+ {[%clk 0:00:05]} 45. Kg3 {[%clk 0:00:02]}  Nd6 {[%clk 0:00:04]} 46. Rd7 {[%clk 0:00:02]}  Re6 {[%clk 0:00:04]} 47. Rxe6 {[%clk 0:00:02]}  Kxe6 {[%clk 0:00:05]} 48. Rxa7 {[%clk 0:00:03]}  Ne4+ {[%clk 0:00:06]} 49. Kg2 {[%clk 0:00:01]}  Nxc3 {[%clk 0:00:06]} 50. Ra6 {[%clk 0:00:01]}  Nd5 {[%clk 0:00:05]} 51. a5 {[%clk 0:00:01]}  Kd6 {[%clk 0:00:05]} 52. axb6 {[%clk 0:00:02]}  Kc6 {[%clk 0:00:05]} 53. b7+ {[%clk 0:00:02]}  Kxb7 {[%clk 0:00:06]} 54. Ra5 {[%clk 0:00:02]}  Kb6 {[%clk 0:00:06]} 55. Rc5 {[%clk 0:00:02]}  Ne3+ {[%clk 0:00:05]} 56. Kf2 {[%clk 0:00:02]}  Ng4+ {[%clk 0:00:06]} 57. Ke2 {[%clk 0:00:01]}  Rxc5 {[%clk 0:00:06]} 58. dxc5+ {[%clk 0:00:01]}  Kxc5 {[%clk 0:00:07]} 59. Kd2 {[%clk 0:00:01]}  Ne5 {[%clk 0:00:06]} 60. Nxe5 {[%clk 0:00:01]}  Kd4 {[%clk 0:00:06]} 61. Nxc4 {[%clk 0:00:01]} 1/2-1/2


[Site "https://www.chess.com"]

[Event "Titled Tuesday Blitz October 11 Late 2022"]
[White "Principe, Gerson"]
[Black "Carlsen, Magnus"]
[WhiteFideId "3804550"]
[BlackFideId "1503014"]
[WhiteElo "2280"]
[BlackElo "2830"]
[Result "0-1"]
[Round "01"]
[TimeControl "180+1"]
[Date "2022.10.11"]
[WhiteClock "0:00:17"]
[BlackClock "0:01:57"]

1. d4 {[%clk 0:02:55]}  d5 {[%clk 0:02:58]} 2. Nf3 {[%clk 0:02:55]}  Bf5 {[%clk 0:02:55]} 3. e3 {[%clk 0:02:50]}  e6 {[%clk 0:02:54]} 4. Be2 {[%clk 0:02:47]}  Nf6 {[%clk 0:02:54]} 5. O-O {[%clk 0:02:48]}  h6 {[%clk 0:02:51]} 6. b3 {[%clk 0:02:48]}  a5 {[%clk 0:02:47]} 7. a3 {[%clk 0:02:45]}  c6 {[%clk 0:02:45]} 8. Bb2 {[%clk 0:02:45]}  Nbd7 {[%clk 0:02:45]} 9. c4 {[%clk 0:02:45]}  Bd6 {[%clk 0:02:46]} 10. Nbd2 {[%clk 0:02:46]}  Qb8 {[%clk 0:02:45]} 11. Rc1 {[%clk 0:02:39]}  O-O {[%clk 0:02:43]} 12. Re1 {[%clk 0:02:37]}  b5 {[%clk 0:02:39]} 13. cxd5 {[%clk 0:02:31]}  cxd5 {[%clk 0:02:38]} 14. Nf1 {[%clk 0:02:29]}  b4 {[%clk 0:02:31]} 15. a4 {[%clk 0:02:27]}  Rc8 {[%clk 0:02:28]} 16. Ng3 {[%clk 0:02:23]}  Bxg3 {[%clk 0:02:25]} 17. hxg3 {[%clk 0:02:23]}  Rxc1 {[%clk 0:02:25]} 18. Qxc1 {[%clk 0:02:21]}  Qb7 {[%clk 0:02:25]} 19. Qd1 {[%clk 0:02:15]}  Rc8 {[%clk 0:02:25]} 20. Bd3 {[%clk 0:02:16]}  Qc6 {[%clk 0:02:17]} 21. Bxf5 {[%clk 0:02:09]}  exf5 {[%clk 0:02:15]} 22. Ne5 {[%clk 0:02:09]}  Qc2 {[%clk 0:02:13]} 23. Nd3 {[%clk 0:01:50]}  Ne4 {[%clk 0:02:06]} 24. Bc1 {[%clk 0:00:31]}  Qxd1 {[%clk 0:02:03]} 25. Rxd1 {[%clk 0:00:31]}  Rc3 {[%clk 0:02:03]} 26. Nf4 {[%clk 0:00:28]}  Ndf6 {[%clk 0:02:02]} 27. Bd2 {[%clk 0:00:26]}  Rxb3 {[%clk 0:02:02]} 28. Be1 {[%clk 0:00:26]}  Ra3 {[%clk 0:01:59]} 29. f3 {[%clk 0:00:27]}  Nd6 {[%clk 0:01:59]} 30. Rc1 {[%clk 0:00:26]}  Rxa4 {[%clk 0:01:59]} 31. Rc5 {[%clk 0:00:25]}  Ra1 {[%clk 0:01:59]} 32. Kf2 {[%clk 0:00:25]}  b3 {[%clk 0:01:59]} 33. Bc3 {[%clk 0:00:24]}  Nfe4+ {[%clk 0:01:57]} 34. fxe4 {[%clk 0:00:23]}  Nxe4+ {[%clk 0:01:58]} 35. Ke2 {[%clk 0:00:18]}  Nxc3+ {[%clk 0:01:56]} 36. Rxc3 {[%clk 0:00:17]}  b2 {[%clk 0:01:57]} 0-1


[Site "https://www.chess.com"]